[Event "HSK IM Invitational 2022"]
[Site "Hamburg"]
[Date "2022.05.22"]
[Round "3.1"]
[White "Bracker, Arne"]
[Black "Clarke, Brandon G I"]
[Result "0-1"]
[ECO "B72"]
[WhiteElo "2276"]
[BlackElo "2445"]
[Annotator "TA"]
[PlyCount "102"]
[EventDate "2022.05.20"]
[EventType "tourn"]
[EventCountry "GER"]
[SourceTitle "playchess.com"]
[Source "ChessBase"]
[SourceQuality "1"]
[TimeControl "40/5400+30:1800+30"]

{[%evp 10,102,45,35,41,52,51,51,51,45,44,42,79,54,76,41,51,56,53,27,54,50,222,67,62,52,68,30,41,0,5,-21,-19,-39,-38,-31,-31,-30,-17,-37,-39,-14,-29,-176,-66,-54,-61,-54,-57,-206,-197,-309,-318,-278,-313,-305,-303,-291,-280,-275,-263,-251,-248,-255,-255,-255,-116,-276,-262,-254,-229,-497,-489,-531,-495,-288,-236,-655,-654,-2708,-2604,-5089,-4536,-5061,-4627,-1201,-527,-29962,-29964,-29979,-29980,-29980,-29981,-29979,-29980]} 1. e4 {[%emt 0:00:02]} c5 {[%emt 0:04:37]} 2. Nf3 {[%emt 0:00:14]} Nf6 {[%emt 0:01:29]} 3. Nc3 {[%emt 0:02:54]} d6 {[%emt 0:07:12]} 4. d4 {[%emt 0:00:33]} cxd4 {[%emt 0:00:05]} 5. Nxd4 {[%emt 0:00:06]} g6 {[%emt 0:00:45]} 6. Be3 {[%emt 0:00:47]} Nc6 {[%emt 0:00:04] B72: Sicilian Dragon: 6 Be3, lines with h3+Bc4 and sidelines.} 7. f3 {[%emt 0:02:55] Prevents Ng4.} h5 {[%emt 0:00:03]} 8. Qd2 {[%emt 0:02:25]} Nxd4 {[%emt 0:01:54] White is slightly better.} 9. Bxd4 {[%emt 0:00:45]} Bh6 {[%emt 0:00:04]} 10. Bb5+ {[%emt 0:03:22] [#]} Kf8 $146 {[%emt 0:06:08]} ({Predecessor:} 10... Bd7 11. Qd3 Bc6 12. O-O O-O 13. Bxf6 exf6 14. Kh1 Qb6 15. a4 Qc5 16. Rfd1 Rfd8 {0-1 (33) Saric,I (2669)-Rapport,R (2763) Warsaw 2021}) 11. Qd3 {[%emt 0:03:10]} Be6 {[%emt 0:03:25]} 12. Ba4 {[%emt 0:06:29]} h4 {[%emt 0:06:21]} 13. O-O {[%emt 0:04:58]} Bg7 {[%emt 0:02:56]} 14. Rad1 {[%emt 0:06:27]} Rc8 {[%emt 0:04:13]} 15. Bb3 {[%emt 0:00:31] Prevents Bc4.} (15. Bxa7 $2 Qa5 16. Be3 (16. Qd4 $2 Nh5 $19) 16... Bc4 $19) 15... Qa5 $2 {[%emt 0:00:28]} (15... Nd7 $14) 16. f4 $2 {[%emt 0:06:42]} (16. Bxe6 $18 fxe6 17. f4) 16... Bxb3 $1 $14 {[%emt 0:14:12]} 17. axb3 {[%emt 0:00:34]} h3 {[%emt 0:01:12]} 18. g3 {[%emt 0:03:30]} Ng4 {[%emt 0:04:10]} 19. Bxg7+ {[%emt 0:07:54]} Kxg7 {[%emt 0:00:10]} 20. Qd4+ {[%emt 0:00:07]} f6 {[%emt 0:30:48]} 21. Ra1 {[%emt 0:11:31]} Qc5 {[%emt 0:00:04]} 22. Qxc5 {[%emt 0:02:18]} dxc5 {[%emt 0:00:01]} 23. Rxa7 {[%emt 0:07:32]} Rcd8 {[%emt 0:01:34]} 24. Rd1 {[%emt 0:11:46] Against Rd2} (24. Rxb7 $2 Rd2 25. Rxe7+ Kh6 $19) 24... Ne3 {[%emt 0:03:32]} 25. Rxd8 {[%emt 0:08:58]} Rxd8 {[%emt 0:00:01]} 26. Nd5 {[%emt 0:00:01]} (26. Rxb7 Rd2 27. Rxe7+ Kh6 28. Re8 Rg2+ 29. Kh1 Rf2) (26. Kf2 $1 $11 Nxc2 27. Ke2) 26... Nxd5 {[%emt 0:00:11]} (26... Ng4 $1 $19 {Hoping for ...e6.} 27. Kf1 (27. Rxb7 $2 Ra8 $19) 27... Nxh2+ 28. Ke2 Ng4) 27. exd5 $15 {[%emt 0:00:05]} Rxd5 {[%emt 0:00:05]} 28. Rxb7 $19 {[%emt 0:01:02][%mdl 4096] Endgame KR-KR} Kf7 {[%emt 0:00:04]} 29. c3 {[%emt 0:06:30] Black continues to play with concentration.} (29. Rc7 $15) 29... Rd2 $1 {[%emt 0:01:13]} 30. b4 {[%emt 0:00:16]} (30. Rb5 $142) 30... Rg2+ {[%emt 0:00:07]} ({Not} 30... Rxb2 31. Rb8 $17) 31. Kh1 {[%emt 0:00:16]} Rxb2 {[%emt 0:00:04][%cal Rb2b1]} 32. Kg1 {[%emt 0:00:03]} Rg2+ {[%emt 0:02:12]} 33. Kh1 {[%emt 0:00:02]} c4 {[%emt 0:00:11]} 34. b5 {[%emt 0:01:58]} Rc2 {[%emt 0:01:16][%cal Rc2c1]} 35. Kg1 {[%emt 0:00:01]} Rxc3 {[%emt 0:00:36]} 36. b6 {[%emt 0:00:52]} Rc1+ {[%emt 0:01:58]} 37. Kf2 {[%emt 0:00:02]} Rh1 {[%emt 0:00:01]} (37... Rc2+ $19 38. Kg1 Rg2+ 39. Kh1 Rb2) 38. Kf3 $2 {[%emt 0:00:30]} (38. g4 $17) 38... Rxh2 {[%emt 0:00:09] And now ...Rb2 would win.} 39. Kg4 {[%emt 0:00:20]} Ke6 $1 {[%emt 0:02:43]} 40. Rc7 $2 {[%emt 0:00:41]} (40. Rb8) 40... Kd5 {[%emt 0:00:37]} 41. b7 {[%emt 0:04:24] [#]} Rb2 $1 {[%emt 0:00:00]} 42. Kxh3 {[%emt 0:00:43]} e6 {[%emt 0:05:26] Threatens to win with ...Kd4.} 43. g4 $2 {[%emt 0:04:05]} (43. Kg4) 43... Kd4 {[%emt 0:02:39]} 44. Kg3 {[%emt 0:00:21]} c3 {[%emt 0:09:32][%cal Bc4c3,Bc3c2][%mdl 32] Strongly threatening ...Kd3.} 45. Kf3 {[%emt 0:04:50]} Kd3 {[%emt 0:00:36]} 46. Rd7+ {[%emt 0:01:55] [#]} Kc2 $1 {[%emt 0:00:03] ...Kc1 is the strong threat.} (46... Kc4 47. Ke3 $11) 47. Ke3 {[%emt 0:00:46]} Kc1 {[%emt 0:03:27]} (47... Rb4 $142 {( -> ...Kb1)} 48. b8=Q Rxb8) 48. Rh7 {[%emt 0:00:44]} Rb3 {[%emt 0:00:46] Black mates.} 49. Ke2 {[%emt 0:10:09]} c2 {[%emt 0:04:03]} 50. Rc7 {[%emt 0:00:27]} Kb1 {[%emt 0:01:00]} ({Stronger than} 50... Kb2 51. Kd2 $11) 51. Kd2 {[%emt 0:00:09]} Rb2 {[%emt 0:00:12] Weighted Error Value: White=0.91/Black=0.22 (precise)} 0-1

[Event "HSK IM Invitational 2022"]
[Site "Hamburg"]
[Date "2022.05.22"]
[Round "3.2"]
[White "Kopylov, Michael"]
[Black "Hommer, Jeremy"]
[Result "1/2-1/2"]
[ECO "E05"]
[WhiteElo "2378"]
[BlackElo "2152"]
[Annotator "TA"]
[PlyCount "49"]
[EventDate "2022.05.20"]
[EventType "tourn"]
[EventCountry "GER"]
[SourceTitle "playchess.com"]
[Source "ChessBase"]
[SourceQuality "1"]
[TimeControl "40/5400+30:1800+30"]

{[%evp 19,49,0,0,0,4,0,0,0,0,0,-5,-6,0,0,0,-7,0,2,10,7,5,10,80,81,74,0,0,-34,33,0,77,53]} 1. d4 {[%emt 0:08:21]} e6 {[%emt 0:00:11]} 2. g3 {[%emt 0:02:58]} Nf6 {[%emt 0:00:08]} 3. Bg2 {[%emt 0:00:27]} d5 {[%emt 0:00:10]} 4. Nf3 {[%emt 0:00:26]} Be7 {[%emt 0:00:08]} 5. O-O {[%emt 0:00:33]} O-O {[%emt 0:00:07]} 6. c4 {[%emt 0:00:35]} dxc4 {[%emt 0:00:19]} 7. Ne5 {[%emt 0:01:50]} Nc6 {[%emt 0:00:11]} 8. Nxc6 {[%emt 0:00:08]} bxc6 {[%emt 0:00:23]} 9. Na3 {[%emt 0:00:12]} Bxa3 {[%emt 0:00:38]} 10. bxa3 {[%emt 0:05:09]} Ba6 {[%emt 0:00:43]} 11. Qd2 {[%emt 0:00:29] E05: Open Catalan: 5 Nf3 Be7.} Rb8 {[%emt 0:00:52][%cal Oc4c3]} 12. Qa5 {[%emt 0:00:52]} Qc8 $1 {[%emt 0:00:26] 12...Qc8 is better than 12...Rb6.} (12... Qxd4 $2 13. Be3 Qd6 14. Qxa6 $18) 13. a4 {[%emt 0:01:48] The position is equal.} Rd8 {[%emt 0:00:41]} 14. Ba3 {[%emt 0:13:31]} Rxd4 {[%emt 0:10:20][%cal Oc4c3]} 15. Rfb1 {[%emt 0:04:14][%cal Oa5a6] [#] Qxa6! is the strong threat.} Rxb1+ {[%emt 0:04:57]} 16. Rxb1 {[%emt 0:00:02][%cal Oa5a6] Threatens to win with Qxa6!} h6 {[%emt 0:00:48][%cal Oc4c3]} 17. Bc5 {[%emt 0:05:01] [#]} Rd8 $146 {[%emt 0:00:30]} ({Predecessor:} 17... Rd5 18. e4 Rd3 19. h3 c3 20. Kh2 Nd7 21. Bxa7 c2 22. Rc1 Qb7 23. Be3 Rxe3 24. fxe3 {0-1 (31) Nisipeanu,L (2674)-Huschenbeth,N (2586) Austria 2019}) 18. Bxa7 {[%emt 0:07:31] A strong pair of Bishops.} c3 {[%emt 0:02:12]} 19. Qxc3 {[%emt 0:02:44]} Bxe2 {[%emt 0:00:48]} 20. Bd4 {[%emt 0:18:01]} ({Reject} 20. Bxc6 Qa6 21. Be3 Rd6 $15) 20... Ne8 {[%emt 0:19:18]} (20... Nd5 $1 $11 {remains equal.} 21. Bxd5 Rxd5) 21. Bxc6 $16 {[%emt 0:02:31]} f6 {[%emt 0:06:51]} 22. Ba7 {[%emt 0:08:32] 0x0.000a5ab1b8f8dp-1022s more active pieces.} (22. Be3 $16) 22... Qa6 $11 {[%emt 0:02:51]} 23. Be3 {[%emt 0:02:36]} (23. Qc5 $5 {[%cal Rc5e7]}) 23... Nd6 {[%emt 0:02:26]} (23... Bc4 $1 $15 24. Be4 Qxa4) 24. Rc1 {[%emt 0:02:50]} Rb8 {[%emt 0:17:00]} (24... Bc4 $11 25. Bb5 Bxb5 26. Qxc7 Nf7 27. axb5 Qxb5) 25. h4 {[%emt 0:03:12] Weighted Error Value: White=0.10 (very precise) /Black=0.21 (precise)} 1/2-1/2

[Event "HSK IM Invitational 2022"]
[Site "Hamburg"]
[Date "2022.05.22"]
[Round "3.3"]
[White "Garner, Isaac"]
[Black "Fischer, Daniel"]
[Result "0-1"]
[ECO "B48"]
[WhiteElo "2240"]
[BlackElo "2367"]
[Annotator "TA"]
[PlyCount "32"]
[EventDate "2022.05.20"]
[EventType "tourn"]
[EventCountry "GER"]
[SourceTitle "playchess.com"]
[Source "ChessBase"]
[SourceQuality "1"]
[TimeControl "40/5400+30:1800+30"]

{[%evp 11,32,38,41,5,0,0,10,-32,33,36,27,23,6,16,26,20,32,29,18,-21,19,-169,-103]} 1. e4 {[%emt 0:00:04]} c5 {[%emt 0:00:11]} 2. Nf3 {[%emt 0:00:06]} e6 {[%emt 0:00:03]} 3. d4 {[%emt 0:00:07]} cxd4 {[%emt 0:00:04]} 4. Nxd4 {[%emt 0:00:05]} Nc6 {[%emt 0:00:28]} 5. Nc3 {[%emt 0:00:07]} Qc7 {[%emt 0:00:25]} 6. Be3 {[%emt 0:00:06]} a6 {[%emt 0:00:06]} 7. g4 {[%emt 0:00:04] B48: Sicilian: Taimanov: 5 Nc3 Qc7 6 Be3 a6 without Be2.} b5 {[%emt 0:03:15]} 8. Nxc6 {[%emt 0:00:16]} Qxc6 {[%emt 0:00:17]} 9. Qd2 {[%emt 0:00:04] The position is equal.} Bb7 {[%emt 0:15:21]} (9... b4 $1 $15 10. Ne2 Qxe4) 10. O-O-O $14 {[%emt 0:00:19]} b4 {[%emt 0:10:23]} 11. Ne2 {[%emt 0:00:26]} Nf6 {[%emt 0:02:43]} 12. f3 {[%emt 0:00:08]} d5 {[%emt 0:03:36]} 13. g5 {[%emt 0:11:52]} Nd7 {[%emt 0:01:03]} 14. Nd4 {[%emt 0:04:52]} Qc7 {[%emt 0:02:19] [#]} 15. Bf4 $146 {[%emt 0:12:34]} ({Predecessor:} 15. f4 dxe4 16. f5 e5 17. Nb3 a5 18. f6 a4 19. Bh3 Bc6 20. Bxd7+ Qxd7 21. Qf2 {½-½ (29) Fier,A (2558)-Garcia Blanco,O (2344) Linares 2021}) 15... e5 {[%emt 0:15:32]} (15... Qb6 $5 {[%cal Re6e5]}) 16. exd5 $2 {[%emt 0:01:13] [#]} (16. Bg3 $1 $11 {and White stays safe.}) 16... Bd6 {[%emt 0:08:48] Weighted Error Value: White=0.35/Black=0.15 (very precise)} ({Don't do} 16... Bxd5 {[#]} 17. Nb5 $1 {[%mdl 512]} axb5 18. Qxd5 $18) ({Black should play} 16... exf4 $19 17. Re1+ Kd8 18. Nc6+ (18. Qe2 $2 Bd6 $19) 18... Bxc6 19. dxc6 Qxc6) 0-1

[Event "HSK IM Invitational 2022"]
[Site "Hamburg"]
[Date "2022.05.22"]
[Round "3.4"]
[White "Schulze, Lara"]
[Black "Miezis, Normunds"]
[Result "1/2-1/2"]
[ECO "B42"]
[WhiteElo "2303"]
[BlackElo "2452"]
[Annotator "TA"]
[PlyCount "82"]
[EventDate "2022.05.20"]
[EventType "tourn"]
[EventCountry "GER"]
[SourceTitle "playchess.com"]
[Source "ChessBase"]
[SourceQuality "1"]
[TimeControl "40/5400+30:1800+30"]

{[%evp 13,82,43,44,39,61,43,68,59,65,68,131,50,52,40,41,62,134,63,36,56,49,38,36,12,15,0,9,17,14,23,16,14,10,5,5,8,6,13,43,41,49,51,82,82,75,76,97,89,100,77,80,81,77,73,80,86,81,50,203,195,192,210,227,0,0,0,0,0,0,0,0]} 1. e4 {[%emt 0:00:04]} c5 {[%emt 0:00:18]} 2. Nf3 {[%emt 0:00:05]} e6 {[%emt 0:00:13]} 3. d4 {[%emt 0:00:05]} cxd4 {[%emt 0:00:10]} 4. Nxd4 {[%emt 0:00:04]} a6 {[%emt 0:00:22]} 5. Bd3 {[%emt 0:00:09]} Ne7 {[%emt 0:02:38]} 6. O-O {[%emt 0:02:00]} Nbc6 {[%emt 0:01:12]} 7. Nxc6 {[%emt 0:00:23]} Nxc6 {[%emt 0:00:19]} 8. Be3 {[%emt 0:00:31] B42: Sicilian: Kan Variation: 5 Bd3.} Qc7 {[%emt 0:12:11]} 9. f4 {[%emt 0:01:04] [#]} Be7 $146 {[%emt 0:03:37]} ({Predecessor:} 9... d6 10. Qg4 g6 11. f5 Ne5 12. Qh4 Qd8 13. f6 h5 14. h3 Bh6 15. Bxh6 {1-0 (39) Oral,T (2410)-Pekarek,A (2445) Czech Republic 1995}) 10. c4 {[%emt 0:09:16] White is slightly better.} b6 {[%emt 0:11:11]} 11. Nc3 {[%emt 0:04:58]} Bb7 {[%emt 0:00:21]} (11... Rb8 $14) 12. Qd2 {[%emt 0:12:45]} (12. Na4 $16) 12... Bc5 $14 {[%emt 0:08:52]} 13. Rad1 {[%emt 0:07:32]} Rd8 {[%emt 0:05:24]} 14. a3 {[%emt 0:12:33]} O-O {[%emt 0:07:11]} ({Black should try} 14... Na5 $14) 15. b4 {[%emt 0:02:15]} (15. Na4 $1 $16) 15... Bxe3+ $1 {[%emt 0:00:15]} 16. Qxe3 {[%emt 0:00:02]} Ne7 $1 {[%emt 0:00:19][%cal Bc6e7,Be7d5,Bd5f6][%mdl 32]} 17. e5 {[%emt 0:09:15]} d5 {[%emt 0:10:21] [#]} 18. cxd5 {[%emt 0:06:28]} Nxd5 {[%emt 0:04:59] [#]} 19. Qh3 {[%emt 0:01:25][%csl Gd3][%cal Rh3h7]} f5 {[%emt 0:02:58] [#]} 20. exf6 $1 {[%emt 0:03:07]} Nxf6 {[%emt 0:00:21]} 21. Qxe6+ {[%emt 0:05:26]} Kh8 {[%emt 0:00:28]} 22. Qc4 {[%emt 0:05:48]} Qb8 {[%emt 0:08:59]} 23. Be2 {[%emt 0:01:55]} b5 $132 {[%emt 0:04:09][%mdl 2048] [#] Black is fighting back} 24. Rxd8 $1 {[%emt 0:01:55]} Rxd8 {[%emt 0:01:29]} 25. Qc5 {[%emt 0:00:57]} h6 {[%emt 0:04:07]} 26. Bf3 {[%emt 0:02:09]} Bxf3 {[%emt 0:02:28]} 27. Rxf3 {[%emt 0:00:08]} Rd2 {[%emt 0:01:00]} 28. h3 $1 {[%emt 0:01:53]} Qd8 {[%emt 0:00:53]} 29. Kh2 {[%emt 0:02:16]} Rd4 {[%emt 0:02:46]} 30. Qe5 {[%emt 0:03:00]} Rc4 {[%emt 0:03:05]} 31. Qe2 {[%emt 0:02:30] Inhibits Qd2.} Qd4 {[%emt 0:00:45]} 32. Qd3 {[%emt 0:01:20]} Qxd3 {[%emt 0:00:41]} 33. Rxd3 {[%emt 0:00:05]} Rxf4 $16 {[%emt 0:00:05][%mdl 4096] Endgame KRN-KRN} 34. Rd6 {[%emt 0:00:52]} Rc4 {[%emt 0:00:33]} 35. Nd1 {[%emt 0:01:11]} a5 $2 {[%emt 0:01:19]} (35... Rc1 $14) 36. bxa5 $18 {[%emt 0:01:03][%cal Bb4a5,Ba5a6][%mdl 32]} Ra4 {[%emt 0:00:09]} 37. a6 {[%emt 0:00:53] Black must now prevent Nc3.} Rxa3 {[%emt 0:00:15] [#]} 38. Rb6 $2 {[%emt 0:00:49]} ({White has to play} 38. Nc3 $1 $18 {[%cal Rc3b5][%mdl 512]} Rxc3 39. Rd8+ Kh7 40. a7) 38... Kh7 $11 {[%emt 0:00:39] The position is equal.} 39. Nf2 {[%emt 0:00:58]} b4 {[%emt 0:00:20]} 40. Rxb4 {[%emt 0:00:30]} Rxa6 {[%emt 0:00:11]} 41. Rb2 {[%emt 0:30:34]} Ra3 {[%emt 0:30:24] Weighted Error Value: White=0.16 (very precise) /Black=0.19 (very precise)} 1/2-1/2

[Event "HSK IM Invitational 2022"]
[Site "Hamburg"]
[Date "2022.05.22"]
[Round "3.5"]
[White "Kotyk, Michael"]
[Black "Kopylov, Daniel"]
[Result "0-1"]
[ECO "D90"]
[WhiteElo "2170"]
[BlackElo "2292"]
[Annotator "TA"]
[PlyCount "42"]
[EventDate "2022.05.20"]
[EventType "tourn"]
[EventCountry "GER"]
[SourceTitle "playchess.com"]
[Source "ChessBase"]
[SourceQuality "1"]
[TimeControl "40/5400+30:1800+30"]

{[%evp 9,42,-7,-4,-22,0,-10,-18,-1,0,0,18,19,17,0,8,0,0,-93,-102,-118,-127,-372,-377,-466,-426,-802,-806,-787,-770,-1969,-1889,-1823,-1016,-29996,-29997]} 1. d4 {[%emt 0:00:45]} Nf6 {[%emt 0:07:38]} 2. c4 {[%emt 0:00:13]} g6 {[%emt 0:00:13]} 3. Nc3 {[%emt 0:00:07]} d5 {[%emt 0:00:15]} 4. Nf3 {[%emt 0:00:06]} Bg7 {[%emt 0:00:11]} 5. h4 {[%emt 0:00:05]} dxc4 {[%emt 0:01:06]} 6. e4 {[%emt 0:00:05] D90: Grünfeld: 4 Nf3 Bg7 sidelines.} c5 {[%emt 0:00:21]} 7. d5 {[%emt 0:00:05]} b5 {[%emt 0:00:18]} 8. h5 {[%emt 0:00:07] [#] aiming for h6. The position is equal.} Nxh5 {[%emt 0:06:44]} 9. Nxb5 {[%emt 0:03:15]} Qa5+ {[%emt 0:01:08]} 10. Nc3 $1 {[%emt 0:00:42][%mdl 1024] White has compensation.} Nd7 {[%emt 0:01:01]} 11. Qc2 {[%emt 0:08:16]} Rb8 {[%emt 0:11:05]} 12. Bd2 {[%emt 0:06:35]} Ba6 {[%emt 0:08:19][%cal Oh5f4] [#]} 13. Na4 $146 {[%emt 1:16:39] [#]} (13. Nd1 $11 {remains equal.} Qc7 14. Rb1) ({Predecessor:} 13. g4 Nf4 14. Nd1 Qc7 15. Bxc4 Bxc4 16. Qxc4 O-O 17. Kf1 e6 18. Rc1 Rfd8 19. b4 exd5 20. exd5 Nxd5 21. bxc5 {0-1 (39) Prohaszka,P (2587)-Sargsyan,S (2601) Chess.com INT 2020}) 13... Rb4 $1 $17 {[%emt 0:08:59]} 14. Bxb4 {[%emt 0:00:00]} cxb4 {[%emt 0:02:32][%cal Bc5b4,Bb4b3][%mdl 32]} 15. e5 $2 {[%emt 0:00:00] Now White is beyond hope.} (15. O-O-O $17 O-O 16. Nd4 Bxd4 17. Rxd4) 15... b3+ $19 {[%emt 0:04:14][%mdl 64] Discovered Attack} 16. Qd2 {[%emt 0:00:00]} Qxa4 {[%emt 0:00:33]} 17. g4 {[%emt 0:00:00]} (17. Qd4 $142) 17... Nxe5 {[%emt 0:03:56]} 18. Nxe5 {[%emt 0:00:00]} Bxe5 {[%emt 0:00:16]} 19. gxh5 {[%emt 0:00:00]} c3 {[%emt 0:00:33] ( -> ...Qe4+)} 20. Qe3 {[%emt 0:00:00] Inhibits Qe4.} cxb2 {[%emt 0:01:02]} 21. Rd1 {[%emt 0:00:00]} Qb4+ {[%emt 0:01:01] Weighted Error Value: White=1.21/Black=0.24 (precise)} 0-1

[Event "HSK IM Invitational 2022"]
[Site "Hamburg"]
[Date "2022.05.23"]
[Round "4.1"]
[White "Clarke, Brandon G I"]
[Black "Kopylov, Daniel"]
[Result "1-0"]
[ECO "B32"]
[WhiteElo "2445"]
[BlackElo "2292"]
[Annotator "TA"]
[PlyCount "97"]
[EventDate "2022.05.20"]
[EventType "tourn"]
[EventCountry "GER"]
[SourceTitle "playchess.com"]
[Source "ChessBase"]
[SourceQuality "1"]
[TimeControl "40/5400+30:1800+30"]

{[%evp 20,97,32,28,27,29,37,21,22,34,33,35,26,39,36,27,51,41,49,42,46,39,70,84,94,98,109,73,100,100,101,38,47,43,39,28,42,44,76,34,102,33,66,66,59,57,52,52,55,26,31,20,81,76,160,131,168,159,154,104,106,108,110,83,155,145,212,80,80,81,85,0,274,274,1014,960,29993,29994,29994,29995]} 1. e4 {[%emt 0:13:56]} c5 {[%emt 0:00:12]} 2. Nf3 {[%emt 0:00:06][%cal Bg1f3,Bf3d4,Bd4b5,Bb5a3,Ba3c2][%mdl 32]} Nc6 {[%emt 0:00:25]} 3. d4 {[%emt 0:00:08]} cxd4 {[%emt 0:00:07]} 4. Nxd4 {[%emt 0:00:03]} e5 {[%emt 0:00:30]} 5. Nb5 {[%emt 0:00:08]} d6 {[%emt 0:00:08]} 6. c4 {[%emt 0:04:12]} Be7 {[%emt 0:00:41]} 7. N1c3 {[%emt 0:00:27]} a6 {[%emt 0:00:26]} 8. Na3 {[%emt 0:03:37]} f5 {[%emt 0:00:48]} 9. exf5 {[%emt 0:01:16]} Bxf5 {[%emt 0:00:46]} 10. Bd3 {[%emt 0:00:08]} Be6 {[%emt 0:00:24]} 11. Nc2 {[%emt 0:08:45]} Nf6 {[%emt 0:01:38] B32: Sicilian: Löwenthal and Kalashnikov Variations.} 12. O-O {[%emt 0:04:35]} O-O {[%emt 0:00:28]} 13. b3 {[%emt 0:01:14]} Qd7 {[%emt 0:01:28] The position is equal.} 14. Nd5 {[%emt 0:08:14]} Bd8 {[%emt 0:06:50] Prevents Nb6.} 15. Nxf6+ {[%emt 0:51:11]} Rxf6 {[%emt 0:07:15]} 16. Be4 {[%emt 0:00:00] [#]} Bb6 $146 {[%emt 1:16:24]} ({Predecessor:} 16... Ba5 17. Ba3 Rd8 18. Ne3 Bb6 19. Qc2 g6 20. Rad1 Bd4 21. Bb2 Bxb2 22. Qxb2 Nd4 {½-½ (36) Zacharov,O (2206)-Teverovski,B (2063) LSS email 2011}) 17. Qd3 {[%emt 0:00:00]} (17. Qh5 Bf5 18. Bxf5 Rxf5 $11) 17... g6 {[%emt 0:00:00]} 18. Bg5 {[%emt 0:00:00]} Rf7 {[%emt 0:00:00]} 19. Rad1 {[%emt 0:00:00]} Raf8 {[%emt 0:00:00][%cal Rb6f2]} 20. Rd2 {[%emt 0:02:30]} Kg7 {[%emt 0:00:00]} 21. Be3 {[%emt 0:00:00]} (21. Qxd6 Qxd6 22. Rxd6 Bxf2+ 23. Kh1 (23. Rxf2 Rxf2 24. h4 Rf1+ 25. Kh2 Bf5 $17) 23... Bc5 $1 24. Rxf7+ Rxf7 $15) 21... Ba5 {[%emt 0:00:00]} 22. Rdd1 {[%emt 0:00:00]} Bc7 {[%emt 0:00:00]} 23. Qc3 {[%emt 0:00:00]} Bf5 {[%emt 0:00:00]} 24. Bd5 {[%emt 0:00:00]} Be6 {[%emt 0:00:00]} 25. Rd3 {[%emt 0:00:00]} (25. Nb4 $16) 25... Bxd5 {[%emt 0:00:00]} 26. Rxd5 {[%emt 0:00:00]} Qe6 {[%emt 0:00:00][%cal Ob7b5]} 27. Rfd1 {[%emt 0:00:00]} Ne7 {[%emt 0:00:00]} 28. R5d2 {[%emt 0:00:00]} Kg8 {[%emt 0:00:49]} 29. Qb4 {[%emt 0:00:00]} Nf5 {[%emt 0:01:08]} (29... Rb8 $14) 30. h3 {[%emt 0:00:00]} ({White should try} 30. Qxb7 $16 Ba5 31. Qd5 Qxd5 32. Rxd5 Nxe3 33. fxe3 (33. Nxe3 Bb4 $14)) 30... Bb8 {[%emt 0:04:30]} 31. Bb6 {[%emt 0:00:00]} Bc7 {[%emt 0:00:23]} 32. Re2 {[%emt 0:00:00]} Qf6 {[%emt 0:00:32]} 33. Rd3 {[%emt 0:00:00]} Qg5 {[%emt 0:00:29]} 34. Be3 {[%emt 0:00:00] Inhibits Qc1+.} Qh4 {[%emt 0:00:33]} 35. Qd2 {[%emt 0:00:37] aiming for Bg5.} (35. Qxb7 d5 36. Rd1 (36. Qxa6 $2 d4 $19) (36. Qxd5 $2 Rd8 $19) (36. Rxd5 Nxe3 37. Nxe3 e4 $11) (36. cxd5 $2 e4 $19) 36... e4 $11) 35... Nxe3 {[%emt 0:00:34]} (35... h6 $11) 36. Nxe3 $16 {[%emt 0:01:38]} Bb6 {[%emt 0:00:23]} (36... Qg5 $142) 37. Rxd6 {[%emt 0:00:19]} Bd4 {[%emt 0:00:24]} 38. Ng4 {[%emt 0:00:06] Strongly threatening Nh6+.} Rf4 {[%emt 0:00:36]} 39. Rd7 {[%emt 0:03:22]} (39. Nxe5 Bxf2+ 40. Kh1 Bg3 $17) (39. c5 $142) 39... b6 {[%emt 0:00:34]} 40. Qc2 {[%emt 0:02:59]} Qg5 {[%emt 0:00:29]} 41. Kh1 {[%emt 0:18:58]} R8f5 {[%emt 0:31:06]} ({Black should play} 41... Qh4 42. Kg1 (42. Nxe5 $2 Bxe5 43. Qd1 Rd4 $19) 42... Qg5) 42. c5 $1 {[%emt 0:04:43]} Bxc5 {[%emt 0:00:00]} (42... bxc5 $16 {was called for.} 43. Qc4+ Rf7) 43. Qd3 {[%emt 0:00:20]} (43. g3 $1 $18 {[%cal Rg3f4]} Rxg4 44. hxg4 Qxg4 45. Qd3) 43... Rd4 {[%emt 0:00:00]} 44. Rxd4 {[%emt 0:00:22] White is much more active.} Bxd4 {[%emt 0:01:30]} 45. Rc2 {[%emt 0:09:06] Prevents Qc1+.} (45. Qc4+ $6 Kg7 $11) ({Better is} 45. g3 $1 $16 {Hoping for f4.} Qc1+ 46. Kg2 (46. Kh2 Kg7 $14) 46... Qc6+ 47. Qe4 Qxe4+ 48. Rxe4) 45... h5 $2 {[%emt 0:00:00][%mdl 8192] [#]} (45... Rf7 $11 {and Black stays safe.}) 46. Rc7 $1 $18 {[%emt 0:00:00] Qc4+ would kill now.} b5 {[%emt 0:00:17] [#] Prevents Qc4+.} (46... hxg4 {is a self mate.} 47. Qc4+ Kf8 48. Rc8+ (48. Qd5 Qe7 $16) 48... Ke7 49. Qc7+ Ke6 50. Qc6+ Kf7 51. Qe8+ Kf6 52. Rc6+ Kg7 53. Rc7+) (46... Bc5) 47. Qe4 $1 {[%emt 0:00:00] Intending Qd5+ and mate.} ({Weaker is} 47. Nxe5 Rxf2 48. Rc8+ Kh7 49. Rc7+ Kg8 50. Rc8+ Kh7 51. Rc7+ Kg8 $11) 47... Rf8 {[%emt 0:00:41]} 48. Qd5+ {[%emt 0:00:00]} Kh8 {[%emt 0:00:08]} 49. Qd7 {[%emt 0:00:00] Weighted Error Value: White=0.16 (very precise) /Black=0.49} 1-0